bitfinex/quotes_ETHUSD_20251118
["timestamp","ask_amount","ask_price","bid_price","bid_amount"]
[1763473855898,7.45596362,3049.8,3049.7,0.001]
[1763473856100,7.73896362,3049.8,3049.7,0.001]
[1763473856294,7.75776362,3049.8,3049.7,0.001]
[1763473856531,0.90699264,3049.7,3049.4,0.001]
[1763473856732,0.0188,3049.5,3049.4,0.001]
[1763473857100,0.0376,3049.5,3049.4,0.001]
[1763473857920,0.443104,3049.5,3049.4,0.001]
[1763473858101,0.405504,3049.4,3048.1,0.001]
[1763473858301,0.90699264,3049.0,3048.1,0.001]
[1763473858530,0.283,3048.9,3048.1,0.001]
[1763473858728,0.3018,3048.9,3048.1,0.001]
[1763473859439,0.42669587,3049.8,3048.8,0.4658]
[1763473859731,0.42669587,3049.8,3048.2,0.4728]
[1763473859732,0.0188,3049.6,3048.2,0.4728]
[1763473860297,0.0188,3049.6,3048.1,0.001]
[1763473860298,0.90699264,3049.2,3048.1,0.001]
[1763473860546,0.283,3049.1,3048.1,0.001]
[1763473860754,0.283,3049.1,3048.1,0.4738]
[1763473861034,0.3018,3049.1,3048.1,0.4738]
[1763473861365,0.90699264,3048.1,3047.8,0.001]
[1763473861641,0.283,3048.0,3047.8,0.001]
[1763473861841,1.3668,3047.9,3047.8,0.001]
[1763473863032,6.53017098,3048.2,3047.8,0.001]
[1763473863236,1.065,3048.1,3047.8,0.9396]
[1763473863439,0.283,3048.0,3047.8,0.9396]
[1763473863750,0.90619264,3048.7,3047.9,0.4728]
[1763473863950,1.065,3048.6,3047.9,0.9386]
[1763473864452,1.065,3048.6,3047.8,0.001]
[1763473864806,1.065,3048.5,3047.8,0.001]
[1763473865029,0.283,3048.4,3047.8,0.001]
[1763473865228,6.53017098,3048.8,3047.8,0.4738]
[1763473865428,1.348,3048.7,3047.8,0.4738]
[1763473865746,2.25499264,3048.7,3047.8,0.4738]
[1763473865927,2.27379264,3048.7,3047.8,0.001]
[1763473866241,0.4163795,3049.9,3048.6,0.685]
[1763473866242,6.53017098,3049.4,3048.6,0.685]
[1763473866547,2.25499264,3049.3,3047.9,0.6554]
[1763473866709,2.27379264,3049.3,3047.9,0.6554]
[1763473866910,0.0188,3049.2,3047.9,0.6554]
[1763473867923,0.0188,3049.2,3047.9,0.1953]
[1763473868144,0.0188,3049.2,3048.0,0.4601]
[1763473868863,0.90699264,3049.3,3048.0,0.4601]
[1763473869361,1.348,3049.2,3048.0,0.4601]
[1763473869744,0.0188,3049.1,3048.0,0.4601]
[1763473870062,0.424304,3049.1,3047.9,0.1953]
[1763473870215,0.90699264,3048.7,3047.9,0.1953]
[1763473870415,0.283,3048.6,3047.9,0.1953]
[1763473871570,0.90699264,3048.7,3047.9,0.1953]
[1763473871752,0.283,3048.5,3047.9,0.1953]
[1763473872114,0.90699264,3048.7,3047.9,0.1953]
[1763473872656,1.348,3048.6,3047.9,0.1953]
[1763473874129,1.348,3048.6,3047.8,0.001]
[1763473874329,1.3668,3048.6,3047.8,0.001]
[1763473875368,0.0188,3047.9,3047.8,0.001]
[1763473875535,0.3018,3047.9,3047.8,0.001]
[1763473876154,0.90699264,3048.1,3047.8,0.001]
[1763473876472,3.9513805,3049.8,3047.8,0.4611]
[1763473876473,1.349,3048.0,3047.8,0.4611]
[1763473876674,1.349,3048.0,3047.8,0.001]
[1763473876879,0.0188,3047.9,3047.8,0.001]
[1763473877049,1.349,3047.9,3047.8,0.001]
[1763473877465,1.349,3047.9,3047.8,0.4907]
[1763473878343,0.0188,3047.9,3047.8,0.001]
[1763473878548,1.3678,3047.9,3047.8,0.001]
[1763473878748,0.283,3047.9,3047.8,0.001]
[1763473878978,0.90699264,3048.0,3047.8,0.001]
[1763473879173,0.283,3047.9,3047.8,0.001]
[1763473879375,0.3049278,3048.5,3047.8,0.001]
[1763473879581,7.49870581,3049.4,3047.8,0.4907]
[1763473879582,1.066,3047.9,3047.8,0.4907]
[1763473879879,1.349,3047.9,3047.8,0.4907]
[1763473880081,1.349,3047.9,3047.8,0.9532]
[1763473880448,1.349,3047.9,3047.8,0.4907]
[1763473880646,1.3678,3047.9,3047.8,0.001]
[1763473882077,1.066,3047.9,3047.8,0.001]
[1763473882258,1.349,3047.9,3047.8,0.001]
[1763473882655,0.90699264,3048.6,3047.8,0.9606]
[1763473882859,1.349,3048.5,3047.9,0.4971]
[1763473883159,1.349,3048.4,3047.9,0.9596]
[1763473883360,0.90699264,3049.0,3047.9,0.9596]
[1763473883692,0.3060589,3048.9,3048.0,0.4625]
[1763473883878,1.349,3048.8,3048.0,0.4625]
[1763473884083,0.90699264,3049.0,3048.1,0.1978]
[1763473884384,1.349,3048.9,3048.1,0.1978]
[1763473884595,1.349,3048.9,3048.2,0.4625]
[1763473885956,1.349,3048.9,3048.1,0.1978]
[1763473886593,0.002,3048.7,3048.1,0.1978]
[1763473886761,0.002,3048.7,3048.2,0.4625]
[1763473887091,1.066,3048.6,3048.2,0.4625]
[1763473887291,1.349,3048.6,3048.2,0.4625]
[1763473887586,1.349,3048.6,3048.5,0.4971]
[1763473887762,1.349,3048.6,3048.5,0.9596]
[1763473888159,0.0012,3048.7,3048.5,0.9596]
[1763473888361,0.002,3049.1,3048.6,0.9596]
[1763473888691,1.066,3048.7,3048.6,0.4625]
[1763473888896,1.066,3048.7,3048.6,0.9596]
[1763473892267,1.066,3048.7,3048.6,0.4971]
[1763473892483,1.066,3048.7,3048.6,0.9596]
[1763473892865,1.348,3048.7,3048.6,0.9596]
[1763473893514,1.065,3048.7,3048.6,0.9596]
[1763473893718,1.348,3048.7,3048.6,0.9596]
[1763473894013,0.002,3049.1,3048.7,0.405504]
[1763473894215,0.002,3049.1,3049.0,0.4971]
[1763473894423,1.067,3049.1,3049.0,0.4971]
[1763473894717,0.002,3049.4,3049.1,0.405504]
[1763473894920,0.002,3050.2,3049.3,1.100404]
[1763473895088,0.002,3050.2,3050.1,0.6949]
[1763473895281,0.285,3050.2,3050.1,0.6949]
[1763473895610,0.285,3050.2,3050.1,1.1574]
[1763473897109,0.002,3050.2,3050.1,1.1574]
[1763473897314,0.285,3050.2,3050.1,1.1574]
[1763473897719,0.309,3050.2,3049.1,1.76440718]
[1763473897900,6.06772775,3050.2,3049.1,0.1817]
[1763473898235,2.25499264,3050.1,3049.2,0.4768]
[1763473898586,0.405504,3050.0,3048.6,0.1817]
[1763473898787,2.27899264,3050.1,3048.6,0.6585]
[1763473899197,2.27899264,3050.1,3048.7,0.4768]
[1763473899198,0.024,3050.0,3048.7,0.4768]
[1763473899406,6.06572775,3049.7,3048.7,0.4768]
[1763473899614,0.283,3049.6,3048.7,0.4768]
[1763473900394,6.06772775,3050.2,3048.7,0.4768]
[1763473900720,2.25499264,3050.1,3048.7,0.4768]
[1763473901915,0.024,3050.0,3048.7,0.4768]
[1763473902297,6.06572775,3049.7,3048.7,0.4768]
[1763473902493,0.283,3049.6,3048.7,0.4768]
[1763473903334,1.348,3049.5,3048.7,0.4768]
[1763473903520,6.06572775,3049.7,3048.7,0.4768]
[1763473903521,1.348,3049.4,3048.7,0.4768]
[1763473903723,1.348,3049.3,3048.7,0.4768]
[1763473904022,1.348,3049.3,3049.2,0.1817]
[1763473904213,1.348,3049.3,3049.2,0.6502]
[1763473904698,1.348,3049.3,3049.2,0.1817]
[1763473905099,1.348,3049.3,3048.8,0.4768]
[1763473906032,1.348,3049.3,3048.6,0.1827]
[1763473906348,6.06572775,3050.1,3049.2,0.4685]
[1763473906646,2.25499264,3050.0,3049.2,0.4685]
[1763473906829,2.27899264,3050.0,3048.8,0.4768]
[1763473907036,0.024,3049.9,3048.8,0.4768]
[1763473907349,6.06572775,3049.6,3048.6,0.1827]
[1763473907551,0.024,3049.9,3048.6,0.1827]
[1763473907552,6.06572775,3049.1,3048.6,0.001]
[1763473907866,0.283,3049.0,3048.6,0.001]
[1763473908765,0.90699264,3049.5,3048.9,0.4685]
[1763473908963,6.06572775,3049.6,3049.0,0.4685]
[1763473908964,1.348,3049.4,3049.0,0.4685]
[1763473909318,1.348,3049.4,3049.1,0.1817]
[1763473909749,0.024,3049.2,3048.7,0.1817]
[1763473909950,0.90699264,3049.5,3048.7,0.1817]
[1763473910151,0.407504,3050.2,3048.8,0.50959979]
[1763473910152,1.065,3049.1,3048.8,0.50959979]
[1763473910452,1.065,3049.1,3048.8,0.4768]
[1763473910453,0.283,3049.0,3048.8,0.4768]
[1763473910616,1.065,3049.1,3048.8,0.4768]
[1763473910950,0.0012,3050.2,3049.0,0.4685]
[1763473911153,1.065,3050.1,3049.0,0.4685]
[1763473911454,1.065,3050.1,3049.1,0.4768]
[1763473911823,0.283,3050.0,3049.1,0.4768]
[1763473912316,0.283,3050.0,3048.6,1.76540718]
[1763473912317,0.90699264,3049.1,3048.6,0.001]
[1763473912544,0.283,3049.0,3048.6,0.001]
[1763473912759,1.348,3049.0,3048.6,0.001]
[1763473913056,0.90699264,3049.4,3048.6,0.4778]
[1763473913225,1.065,3048.9,3048.6,0.4778]
[1763473913418,0.90699264,3049.4,3048.6,0.4778]
[1763473913625,1.348,3049.3,3048.6,0.4778]
[1763473913820,1.348,3049.3,3048.6,0.001]
[1763473914352,1.372,3049.3,3048.6,0.001]
[1763473914558,0.22789926,3049.2,3048.6,0.001]
[1763473915252,1.348,3049.1,3048.6,0.4778]
[1763473915755,1.348,3049.1,3048.6,0.001]
[1763473916346,6.06572775,3049.0,3048.6,0.001]
[1763473916551,0.024,3048.7,3048.6,0.001]
[1763473916868,0.307,3048.7,3048.6,0.001]
[1763473919389,0.283,3048.7,3048.6,0.001]
[1763473919890,6.08972775,3049.5,3048.6,0.4695]
[1763473920054,6.08972775,3049.5,3048.6,0.9463]
[1763473920055,1.065,3048.7,3048.6,0.9463]
[1763473920259,1.348,3048.7,3048.6,0.4695]
[1763473920469,0.90699264,3049.4,3048.6,0.4695]
[1763473920674,0.90699264,3049.4,3048.6,0.9463]
[1763473920880,1.348,3049.3,3048.6,0.9463]
[1763473921045,1.348,3049.2,3048.7,0.4768]
[1763473921553,6.06572775,3049.5,3049.1,0.4685]
[1763473921897,0.88126093,3050.5,3049.4,0.4685]
[1763473921898,6.06572775,3050.5,3049.4,0.4685]
[1763473922098,1.065,3050.1,3049.4,0.4685]
[1763473922394,0.283,3050.0,3049.5,0.4768]
[1763473922695,0.002,3050.6,3050.0,0.4685]
[1763473922840,0.002,3050.6,3050.1,1.127]
[1763473923045,1.3492,3050.2,3050.1,1.127]
[1763473924247,1.3492,3050.2,3050.1,0.6502]
[1763473924987,1.3492,3050.2,3049.3,0.4768]
[1763473925278,1.3492,3050.2,3050.1,0.6502]
[1763473925783,1.3492,3050.2,3050.1,1.127]
[1763473926077,1.3492,3050.2,3049.8,0.1874]
[1763473926284,1.3492,3050.2,3050.1,0.4685]
[1763473926285,0.0012,3050.2,3050.1,0.4685]
[1763473926484,1.0662,3050.2,3050.1,0.4685]
[1763473926700,0.0012,3050.2,3050.1,0.9407]
[1763473926844,0.002,3050.6,3050.1,0.9407]
[1763473927049,1.065,3050.2,3049.9,0.405504]
[1763473927248,0.283,3050.1,3050.0,0.64123512]
[1763473927679,0.283,3050.1,3050.0,1.58193512]
[1763473928045,0.283,3050.1,3050.0,1.17643112]
[1763473928261,0.283,3050.1,3050.0,0.9407]
[1763473928948,0.283,3050.1,3050.0,0.4685]
[1763473929381,0.283,3050.1,3050.0,0.9407]
[1763473930466,0.283,3050.1,3050.0,0.4685]
[1763473930684,0.3082,3050.1,3049.3,0.4722]
[1763473931070,0.283,3050.1,3049.3,0.4722]
[1763473931269,0.002,3050.6,3050.0,0.4685]
[1763473931471,1.348,3050.5,3050.1,0.4685]
[1763473931686,1.348,3050.4,3050.1,0.4685]
[1763473931889,1.348,3050.4,3050.0,0.1874]
[1763473932495,1.348,3050.4,3050.0,0.6596]
[1763473932709,0.002,3050.6,3050.0,0.6596]
[1763473933193,1.348,3050.5,3050.0,0.6596]
[1763473933498,1.348,3050.5,3049.6,0.4722]
[1763473934106,0.002,3050.6,3049.6,0.4722]
[1763473934315,1.065,3050.4,3049.0,2.41830718]
[1763473934488,6.06572775,3050.2,3049.1,0.4722]
[1763473935103,0.93219264,3050.1,3049.0,0.1817]
[1763473935599,6.06572775,3049.7,3048.6,0.001]
[1763473935801,0.283,3049.6,3048.6,0.001]
[1763473936216,0.283,3049.6,3048.7,0.4722]
[1763473936668,0.283,3049.5,3048.7,0.4722]
[1763473936873,1.348,3049.5,3048.7,0.4722]
[1763473937902,0.283,3049.4,3048.7,0.4722]
[1763473938116,0.90699264,3050.1,3048.7,0.4722]
[1763473938403,1.348,3050.0,3049.3,0.4685]
[1763473938569,1.348,3050.0,3048.6,0.001]
[1763473938570,1.3732,3050.0,3048.6,0.001]
[1763473938774,1.3732,3050.0,3048.7,0.4722]
[1763473939008,0.0252,3049.9,3048.7,0.4722]
[1763473939682,6.06572775,3049.7,3048.7,0.4722]
[1763473939883,0.90699264,3050.1,3049.8,0.6559]
[1763473940083,1.348,3050.0,3048.8,0.405504]
[1763473940290,1.348,3050.0,3048.7,0.4722]
[1763473940497,0.0252,3049.9,3048.6,0.001]
[1763473940812,6.06572775,3049.6,3048.6,0.001]
[1763473941106,0.283,3049.5,3048.6,0.001]
[1763473941980,0.283,3049.5,3048.6,0.4817]
[1763473942387,0.3082,3049.5,3048.6,0.001]
[1763473942805,0.283,3049.5,3048.6,0.001]
[1763473943108,0.283,3049.5,3048.6,0.4817]
[1763473943416,0.283,3049.4,3048.6,0.4817]
[1763473943575,1.348,3049.4,3048.6,0.4817]
[1763473945103,0.0252,3049.9,3048.6,0.4817]
[1763473945313,1.065,3049.3,3048.6,0.4817]
[1763473945518,0.283,3049.2,3048.6,0.4817]
[1763473946376,0.90699264,3050.1,3049.1,0.6672]
[1763473946577,1.348,3050.0,3049.1,0.6672]
[1763473947909,0.93219264,3050.1,3049.1,0.6672]
[1763473948096,1.348,3050.0,3049.1,0.6672]
[1763473948501,1.3732,3050.0,3049.1,0.6672]
[1763473948811,0.0252,3049.9,3048.8,0.4807]
[1763473949313,1.065,3049.8,3048.9,0.03279871]
[1763473949515,1.065,3049.8,3049.0,0.405504]
[1763473949715,0.283,3049.7,3048.9,0.405504]
[1763473949931,0.283,3049.7,3049.0,1.38769264]
[1763473950147,0.283,3049.7,3049.6,0.6672]
[1763473950516,0.283,3049.7,3049.6,1.1479]
[1763473950845,0.283,3049.7,3049.6,0.6672]
[1763473951012,0.283,3049.7,3049.6,1.1479]
[1763473951219,1.348,3049.7,3049.6,1.1479]
[1763473951414,1.348,3049.7,3049.3,0.1903]
[1763473951805,1.348,3049.7,3049.1,0.1903]
[1763473953651,1.348,3049.7,3049.1,0.671]
[1763473953838,1.348,3049.7,3049.1,0.1903]
[1763473954743,1.348,3049.7,3048.8,0.4807]
[1763473955442,1.348,3049.7,3048.6,1.38869264]
[1763473955652,1.348,3049.7,3048.6,1.70410262]
[1763473955857,1.348,3049.7,3048.7,0.4807]
[1763473957766,1.065,3049.6,3048.7,0.4807]
[1763473958858,0.283,3049.5,3048.7,0.4807]
[1763473959866,0.90699264,3050.1,3048.7,0.4807]
[1763473960035,1.065,3049.4,3048.6,0.31640998]
[1763473960361,0.283,3049.3,3048.6,0.001]
[1763473960765,0.3074,3049.3,3048.6,0.001]
[1763473960933,0.0244,3048.7,3048.6,0.001]
[1763473961137,0.3074,3048.7,3048.6,0.001]
[1763473961734,0.283,3048.7,3048.6,0.4694]
[1763473961965,0.30728152,3049.3,3048.6,0.4694]
[1763473962134,1.0894,3048.7,3048.6,0.001]
[1763473962336,1.3724,3048.7,3048.6,0.001]
[1763473963470,1.3968,3048.7,3048.6,0.001]
[1763473963843,1.3724,3048.7,3048.6,0.001]
[1763473965269,1.348,3048.7,3048.6,0.001]
[1763473967274,1.3968,3048.7,3048.6,0.001]
[1763473970067,1.3724,3048.7,3048.6,0.001]
[1763473970467,1.348,3048.7,3048.6,0.001]
[1763473970795,1.3724,3048.7,3048.6,0.001]
[1763473971175,0.90699264,3049.3,3048.6,0.4694]
[1763473971359,1.348,3049.2,3048.8,0.4684]
[1763473972854,1.348,3049.2,3048.6,0.001]
[1763473973471,6.54382672,3049.5,3048.7,0.4809]
[1763473973770,1.348,3049.4,3048.7,0.4809]
[1763473975159,1.348,3049.4,3048.6,0.001]
[1763473975362,0.0264,3049.9,3048.7,0.4809]
[1763473975661,1.348,3049.8,3048.7,0.4809]
[1763473980560,0.002,3049.9,3049.7,0.6525]
[1763473980801,0.002,3049.9,3049.8,0.4684]
[1763473981000,0.002,3049.9,3049.8,0.9493]
[1763473981001,1.35,3049.9,3049.8,0.9493]
[1763473981204,1.3492,3049.9,3049.8,0.9493]
[1763473981420,0.0012,3049.9,3049.8,0.9493]
[1763473981733,0.2842,3049.9,3049.8,0.9493]
[1763473981894,0.2842,3049.9,3049.8,1.99462325]
[1763473982411,0.2842,3049.9,3049.8,0.9493]
[1763473983428,0.0012,3049.9,3049.8,1.354804]
[1763473983643,0.002,3050.3,3049.9,0.405504]
[1763473983920,1.065,3050.5,3050.2,1.78089664]
[1763473984127,1.065,3050.5,3050.4,0.4684]
[1763473984324,1.065,3050.5,3050.4,0.64648966]
[1763473984526,1.065,3050.5,3050.4,0.9493]
[1763473984691,1.347,3050.5,3050.4,0.9493]
[1763473986490,1.347,3050.5,3050.4,0.4684]
[1763473986895,1.347,3050.5,3050.4,0.9627]
[1763473989817,0.0012,3050.6,3050.4,0.9627]
[1763473990002,1.347,3050.5,3049.8,0.405504]
[1763473990335,1.347,3050.5,3050.0,0.405504]
[1763473990499,1.347,3050.5,3050.4,0.4864]
[1763473990931,1.347,3050.5,3050.4,0.9627]
[1763473992346,1.347,3050.5,3050.1,0.4763]
[1763473992559,1.347,3050.5,3050.4,0.4864]
[1763473992762,1.347,3050.5,3050.4,0.9627]
[1763473992915,1.347,3050.5,3050.4,0.4864]
[1763473993117,1.347,3050.5,3050.1,0.4763]
[1763473993644,1.347,3050.5,3050.4,0.4864]
[1763473994018,1.347,3050.5,3050.4,0.9627]
[1763473995217,1.349,3050.5,3050.4,0.9627]
[1763473995421,0.002,3050.5,3050.4,0.9627]
[1763473995628,1.349,3050.5,3050.4,0.9627]
[1763473996220,1.349,3050.5,3050.3,0.001]
[1763473996221,1.3754,3050.5,3050.3,0.001]
[1763473996541,0.0264,3050.4,3050.3,0.001]
[1763473996932,1.349,3050.5,3050.3,0.001]
[1763473997265,0.0264,3050.4,3050.3,0.001]
[1763473997917,1.349,3050.5,3050.3,0.4874]
[1763473999044,0.0528,3050.4,3050.3,0.001]
[1763473999559,0.0264,3050.4,3050.3,0.001]
[1763474001129,1.349,3050.5,3050.3,0.001]
[1763474001452,1.349,3050.5,3050.4,0.4738]
[1763474001958,1.349,3050.5,3050.4,0.967]
[1763474003022,0.002,3050.5,3050.4,0.967]
[1763474003253,1.349,3050.5,3050.4,0.967]
[1763474004668,1.3482,3050.5,3050.4,0.967]
[1763474008259,0.0012,3050.5,3050.4,1.372504]
[1763474008451,0.2832,3050.5,3050.4,1.372504]
[1763474009761,0.2832,3050.5,3050.4,1.37943877]
[1763474011188,0.2832,3050.5,3050.4,0.88623877]
[1763474011390,0.2832,3050.5,3050.4,1.37943877]
[1763474012091,0.2832,3050.5,3050.4,3.54990378]
[1763474012287,1.0662,3050.6,3050.5,0.405504]
[1763474012462,1.0662,3050.6,3050.5,4.53702439]
[1763474013387,1.0662,3050.6,3050.3,1.77218771]
[1763474013591,1.3482,3050.6,3050.5,0.4738]
[1763474013769,1.3482,3050.6,3050.5,1.372504]
[1763474014354,1.3482,3050.6,3050.5,0.4738]
[1763474014562,1.3482,3050.6,3050.5,1.87399264]
[1763474014774,1.3482,3050.6,3050.5,2.23861068]
[1763474018092,1.3482,3050.6,3050.5,1.33161804]
[1763474018993,1.3482,3050.6,3050.5,1.73712204]
[1763474019374,1.067,3050.8,3050.5,3.50751559]
[1763474019573,1.067,3050.8,3050.7,0.4565]
[1763474019961,1.067,3050.8,3050.7,0.9212]
[1763474020582,1.349,3050.8,3050.7,1.326704]
[1763474020892,1.065,3051.0,3050.8,0.9212]
[1763474021194,1.065,3051.0,3050.8,3.1417771]
[1763474021515,1.065,3051.0,3050.8,0.90699264]
[1763474021799,1.065,3051.0,3050.6,0.405504]
[1763474022307,1.065,3051.0,3050.7,0.4647]
[1763474022308,0.282,3050.9,3050.7,0.4647]
[1763474022799,0.282,3050.9,3050.8,0.4565]
[1763474023298,0.282,3050.9,3050.8,0.9212]
[1763474023481,0.282,3050.9,3050.8,1.42016066]
[1763474025087,0.282,3050.9,3050.8,1.82566466]
[1763474026469,0.002,3051.2,3050.9,0.405504]
[1763474026712,0.002,3051.2,3051.1,0.6489]
[1763474026871,0.284,3051.2,3051.1,1.519104]
[1763474027079,1.064,3051.3,3051.1,1.93872211]
[1763474027307,1.064,3051.3,3051.2,0.9212]
[1763474028182,1.064,3051.4,3051.2,0.9212]
[1763474028378,0.282,3051.3,3051.2,0.9212]
[1763474028579,0.282,3051.3,3051.1,1.67518833]
[1763474028780,0.282,3051.3,3051.2,0.89172654]
[1763474029083,0.282,3051.3,3051.2,1.35642654]
[1763474029600,0.42669587,3053.2,3051.3,0.405504]
[1763474029601,6.05691662,3052.8,3051.3,0.405504]
[1763474029909,0.42669587,3053.2,3051.5,0.405504]
[1763474029910,1.064,3052.7,3051.5,0.405504]
[1763474030210,1.064,3052.7,3051.7,0.405504]
[1763474030385,1.0896,3052.7,3051.7,0.405504]
[1763474030590,1.0896,3052.7,3051.8,0.4647]
[1763474030816,1.064,3052.7,3051.8,0.4647]
[1763474030986,0.282,3052.6,3051.8,0.75955466]
[1763474032014,0.3076,3052.6,3051.8,0.29485466]
[1763474032401,0.0256,3052.5,3051.7,0.98548867]
[1763474032920,0.0256,3052.5,3051.6,4.06811834]
[1763474033125,0.002,3052.0,3051.6,4.06811834]
[1763474033324,0.282,3051.9,3051.6,2.29803388]
[1763474034028,0.282,3051.9,3051.6,1.89252988]
[1763474034189,0.282,3051.9,3051.6,1.31972407]
[1763474034586,0.282,3051.9,3051.6,1.60172407]
[1763474034904,0.282,3051.9,3051.8,0.4565]
[1763474036229,0.3076,3051.9,3051.3,1.77008446]
[1763474036536,0.0256,3051.4,3051.1,0.65766622]
[1763474036747,0.0256,3051.2,3051.0,0.282]
[1763474036903,0.3076,3051.1,3050.7,0.66228325]
[1763474037102,0.282,3051.0,3050.5,0.001]
[1763474037401,0.282,3050.9,3050.5,0.001]
[1763474037624,0.93259264,3051.6,3050.5,0.001]
[1763474037625,0.282,3050.8,3050.5,0.001]
[1763474038342,0.282,3050.8,3050.7,0.4565]
[1763474038503,0.002,3052.0,3050.7,0.4565]
[1763474038810,0.0256,3051.8,3050.8,0.4647]
[1763474039544,1.064,3051.7,3050.9,1.31249664]
[1763474039700,0.282,3051.6,3051.1,1.31249664]
[1763474040106,0.282,3051.6,3051.5,0.4565]
[1763474040301,0.282,3051.6,3051.5,0.9212]
[1763474042254,0.282,3051.6,3051.5,0.4565]
[1763474042459,0.282,3051.6,3051.5,1.326704]
[1763474042744,0.282,3051.6,3051.5,1.7303594]
[1763474042945,0.002,3052.0,3051.5,2.63735204]
[1763474043150,1.064,3051.7,3051.6,0.4647]
[1763474043558,1.064,3051.7,3051.6,0.4565]
[1763474043753,1.064,3051.7,3051.3,2.23478446]
[1763474044075,1.064,3051.7,3051.6,0.4565]
[1763474044244,0.282,3051.7,3051.6,0.4565]
[1763474044444,1.346,3051.7,3051.6,0.9212]
[1763474044970,1.346,3051.7,3051.6,2.69128446]
[1763474045268,1.346,3051.7,3051.6,3.5982771]
[1763474045449,1.346,3051.7,3051.6,3.98045266]
[1763474045652,1.346,3051.7,3051.6,2.2103682]
[1763474046665,1.346,3051.7,3051.6,1.7456682]
[1763474046974,1.346,3051.7,3051.6,1.2891682]
[1763474047275,1.346,3051.7,3051.6,1.7476682]
[1763474047435,1.346,3051.7,3051.6,2.1998682]
[1763474048174,0.002,3052.0,3051.6,2.1998682]
[1763474048495,0.002,3052.0,3051.9,0.4585]
[1763474048636,1.348,3052.0,3051.9,0.4585]
[1763474048842,1.348,3052.0,3051.9,0.9107]
[1763474049156,0.002,3052.0,3051.9,1.81769264]
[1763474049350,6.35,3054.0,3051.9,1.81769264]
[1763474049351,1.064,3052.2,3052.0,0.405504]
[1763474049553,6.29198499,3055.3,3052.0,0.405504]
[1763474049554,1.064,3052.6,3052.1,2.67059369]
[1763474049734,0.282,3052.5,3052.1,3.31889369]
[1763474049939,0.282,3052.5,3052.3,0.405504]
[1763474050140,0.282,3052.5,3052.4,0.864004]
[1763474050387,0.0256,3053.8,3052.5,0.405504]
[1763474050542,1.346,3053.7,3052.5,2.22319664]
[1763474050891,0.0256,3053.6,3052.5,1.316204]
[1763474051074,0.002,3052.6,3052.5,1.316204]
[1763474051274,0.284,3052.6,3052.5,1.57839164]
[1763474051699,0.0248,3053.8,3052.5,2.48538428]
[1763474051897,1.064,3052.7,3052.5,2.48538428]
[1763474052096,1.064,3052.7,3052.5,1.12619164]
[1763474052302,1.064,3052.7,3052.6,1.316204]
[1763474052601,1.064,3052.7,3052.6,3.16002141]
[1763474052926,1.346,3052.7,3052.6,0.64841836]
[1763474053087,1.3708,3052.7,3052.6,0.64841836]
[1763474053273,1.3708,3052.7,3052.0,0.1898]
[1763474053688,1.3708,3052.7,3052.0,0.83611422]
[1763474053881,1.346,3052.7,3052.0,0.642]
[1763474054302,1.346,3052.7,3051.9,1.76360105]
[1763474054503,0.0268,3052.9,3052.0,0.405504]
[1763474054504,0.282,3052.6,3052.0,0.405504]
[1763474054717,1.346,3052.6,3052.1,0.405504]
[1763474055013,1.346,3052.6,3052.1,0.1898]
[1763474055487,1.346,3052.6,3052.2,0.4522]
[1763474055687,0.002,3052.9,3052.5,0.4585]
[1763474056010,1.064,3052.5,3052.1,1.54899264]
[1763474056374,1.064,3052.5,3052.1,1.09679264]
[1763474057626,1.064,3052.5,3052.1,0.90699264]
[1763474057996,0.0248,3052.2,3052.0,1.55131668]
[1763474058192,0.3068,3052.1,3051.6,1.76360105]
[1763474058428,0.3068,3052.1,3051.5,0.001]
[1763474058429,0.0248,3051.7,3051.5,0.001]
[1763474058735,6.05691662,3052.2,3051.5,0.001]
[1763474058736,0.3058,3051.6,3051.5,0.001]
[1763474059309,0.3306,3051.6,3051.5,0.001]
[1763474060329,1.3698,3051.6,3051.5,0.001]
[1763474060500,1.3946,3051.6,3051.5,0.001]
[1763474060843,6.05691662,3052.2,3051.5,0.001]
[1763474061042,0.0248,3052.1,3051.5,0.001]
[1763474061543,1.064,3052.0,3051.5,0.001]
[1763474061742,1.345,3052.0,3051.5,0.001]
[1763474063005,0.0248,3052.4,3051.5,0.001]
[1763474063326,1.345,3052.3,3051.5,0.001]
[1763474063530,1.345,3052.2,3051.5,0.001]
[1763474064062,0.90699264,3052.6,3051.5,0.001]
[1763474064210,1.064,3052.5,3051.5,0.4812]
[1763474064408,0.0248,3053.1,3051.6,0.405504]
[1763474064609,1.345,3052.8,3051.8,0.405504]
[1763474065040,1.3698,3052.8,3051.8,0.405504]
[1763474065208,1.345,3052.8,3051.8,1.06497366]
[1763474065413,0.0248,3052.7,3051.7,0.405504]
[1763474066007,0.0248,3052.7,3051.6,0.405504]
[1763474066411,0.0248,3052.7,3051.6,0.885704]